bitfinex/quotes_ETHUSD_20260226
["timestamp","ask_amount","ask_price","bid_price","bid_amount"]
[1772088223863,0.47702619,2065.5,2065.3,0.0011]
[1772088224066,0.47702619,2065.4,2065.0,0.0111]
[1772088225331,0.47702619,2065.3,2065.0,0.0111]
[1772088225535,1.2105365,2065.2,2065.0,0.0111]
[1772088225737,0.47702619,2065.1,2065.0,0.0111]
[1772088229074,1.68754546,2065.3,2065.0,0.0111]
[1772088229368,0.47702619,2065.2,2065.0,0.0111]
[1772088230566,0.47702619,2065.4,2065.0,0.0111]
[1772088230769,0.47702619,2065.6,2065.2,0.46583743]
[1772088231146,0.47702619,2065.6,2065.1,0.76162478]
[1772088233867,1.68738687,2065.5,2065.1,0.76162478]
[1772088234265,0.47702619,2065.5,2065.2,0.46583743]
[1772088234463,0.47702619,2065.7,2065.4,0.46583743]
[1772088235076,0.47702619,2065.7,2065.3,0.76162478]
[1772088236185,0.47702619,2065.7,2065.3,1.97207192]
[1772088236399,0.47702619,2065.7,2065.3,0.76162478]
[1772088236886,0.001,2065.4,2065.3,0.76162478]
[1772088237086,0.47702619,2065.7,2065.3,0.76162478]
[1772088237781,1.68727228,2065.7,2065.3,0.76162478]
[1772088237984,0.45932884,2065.5,2065.0,0.0111]
[1772088238380,0.45932884,2065.3,2065.0,0.0111]
[1772088238576,0.45932884,2065.1,2065.0,0.0111]
[1772088239171,0.45932884,2065.1,2064.8,0.0011]
[1772088240683,0.45932884,2065.0,2064.8,0.0011]
[1772088242386,0.45932884,2065.5,2065.0,0.49373721]
[1772088242590,0.45932884,2065.5,2065.2,0.49373721]
[1772088242968,1.21030523,2065.6,2065.3,0.29578735]
[1772088243492,1.21030523,2065.6,2065.2,0.49373721]
[1772088243493,1.66963407,2065.6,2065.2,0.49373721]
[1772088245795,0.45932884,2065.5,2065.2,0.49373721]
[1772088245967,0.45932884,2065.5,2065.1,0.78952456]
[1772088247199,0.45932884,2065.5,2065.2,0.49373721]
[1772088248099,1.66969125,2065.5,2065.2,0.49483721]
[1772088248290,0.001,2065.4,2065.2,0.49483721]
[1772088252699,0.46032884,2065.4,2065.2,0.0011]
[1772088253697,0.001,2065.4,2065.2,0.49483721]
[1772088255002,0.46032884,2065.4,2065.2,0.0011]
[1772088257300,0.001,2065.4,2065.2,0.0011]
[1772088257681,0.46032884,2065.4,2065.2,0.0011]
[1772088259399,1.21047789,2065.3,2065.2,0.0011]
[1772088259593,1.66980673,2065.3,2065.2,0.0011]
[1772088260705,0.45932884,2065.2,2065.0,0.0011]
[1772088261482,1.66986779,2065.2,2065.0,0.0011]
[1772088262400,0.45932884,2065.2,2065.0,0.0011]
[1772088262600,1.66987322,2065.2,2065.0,0.0011]
[1772088263912,1.21054438,2065.2,2065.0,0.0011]
[1772088264079,0.45932884,2065.1,2065.0,0.0011]
[1772088264493,0.45932884,2065.0,2064.8,0.0011]
[1772088265902,1.67083565,2064.9,2064.7,0.0011]
[1772088266287,0.46012327,2065.1,2064.7,0.45439115]
[1772088266607,0.46012327,2065.1,2064.8,0.45329115]
[1772088270119,0.46012327,2065.1,2064.7,0.45439115]
[1772088270490,0.46012327,2065.1,2064.7,0.0011]
[1772088270806,0.46012327,2065.1,2064.7,0.45439115]
[1772088271004,1.67077702,2065.0,2064.7,0.45439115]
[1772088271303,1.67077702,2065.0,2064.7,0.0011]
[1772088271304,0.46012327,2064.9,2064.7,0.0011]
[1772088272031,0.46012327,2064.9,2064.8,0.0011]
[1772088274198,0.49199805,2064.8,2064.5,0.0011]
[1772088275920,0.49199805,2064.9,2064.5,0.4572758]
[1772088276107,1.70272793,2064.9,2064.5,0.4572758]
[1772088276706,0.49199805,2064.8,2064.5,0.4572758]
[1772088277811,0.49199805,2064.8,2064.5,0.0011]
[1772088278013,0.49199805,2064.8,2064.5,0.4572758]
[1772088278326,0.49199805,2064.8,2064.5,0.0011]
[1772088278327,1.70280292,2064.8,2064.5,0.0011]
[1772088279913,0.49199805,2064.7,2064.3,0.0011]
[1772088281915,0.49199805,2064.5,2064.3,0.0011]
[1772088285826,1.7038575,2064.7,2064.3,0.4572758]
[1772088286243,0.49299805,2064.7,2064.3,0.4572758]
[1772088286644,0.001,2064.7,2064.4,0.4561758]
[1772088288054,0.49299805,2064.7,2064.4,0.4561758]
[1772088288855,0.001,2064.7,2064.4,0.4561758]
[1772088294355,0.49199805,2065.1,2064.7,0.4561758]
[1772088294550,0.49199805,2065.1,2064.4,0.4561758]
[1772088294746,0.49199805,2065.1,2064.4,0.44392272]
[1772088294953,0.49199805,2065.1,2064.5,0.4561758]
[1772088295544,1.7026518,2065.0,2064.5,0.4561758]
[1772088295833,1.7026518,2065.0,2064.6,0.50027868]
[1772088296034,0.49096428,2064.9,2064.6,0.50027868]
[1772088296233,0.49096428,2064.9,2064.6,0.0011]
[1772088298247,0.49096428,2064.7,2064.6,0.0011]
[1772088300665,1.70179394,2064.7,2064.6,0.0011]
[1772088300961,0.49096428,2064.9,2064.6,0.0011]
[1772088301168,1.542,2065.0,2064.6,0.50027868]
[1772088301364,2.75265384,2065.0,2064.6,0.50027868]
[1772088302362,0.49196428,2065.2,2064.6,0.50027868]
[1772088302564,0.49196428,2065.2,2064.7,0.49917868]
[1772088302565,1.70254634,2065.2,2064.7,0.49917868]
[1772088302766,1.21154267,2065.2,2064.7,0.49917868]
[1772088303062,1.70250695,2065.2,2064.7,0.49917868]
[1772088303675,0.49096428,2065.1,2064.7,0.49917868]
[1772088305646,1.21065375,2065.0,2064.7,0.49917868]
[1772088305851,1.70161803,2065.0,2064.7,0.49917868]
[1772088306239,0.001,2065.4,2065.0,0.49917868]
[1772088306568,0.001,2065.4,2064.8,0.49917868]
[1772088306569,0.49096428,2065.3,2064.8,0.49917868]
[1772088307773,1.70150078,2065.2,2064.8,0.49917868]
[1772088308749,1.70150078,2065.2,2064.9,0.0011]
[1772088309155,0.001,2065.1,2064.9,0.0011]
[1772088309347,0.001,2065.1,2064.9,0.50027868]
[1772088309771,0.001,2065.1,2065.0,0.49917868]
[1772088315274,0.001,2065.1,2064.9,0.0011]
[1772088315482,0.001,2065.1,2064.9,0.50027868]
[1772088316275,0.001,2065.4,2065.0,0.49917868]
[1772088317157,0.001,2065.4,2065.2,0.49917868]
[1772088317556,0.49096428,2065.7,2065.3,0.49917868]
[1772088319882,0.49096428,2065.6,2065.3,0.49917868]
[1772088320292,0.49096428,2065.6,2065.1,0.49917868]
[1772088320482,0.44392272,2065.6,2065.1,0.49917868]
[1772088320793,0.49096428,2065.5,2065.1,0.49917868]
[1772088321155,0.49096428,2065.5,2064.9,1.2117709]
[1772088321363,0.49096428,2065.5,2065.0,0.49917868]
[1772088321764,0.49096428,2065.5,2065.3,0.0011]
[1772088321967,0.49096428,2065.4,2065.3,0.0011]
[1772088322796,1.21041589,2065.5,2065.1,0.49917868]
[1772088322968,0.49096428,2065.2,2065.0,0.0011]
[1772088323873,1.21059512,2065.1,2065.0,0.0011]
[1772088325162,0.49096428,2065.4,2065.0,0.50027868]
[1772088325985,1.21047789,2065.3,2065.0,0.0011]
[1772088326175,1.68723672,2065.3,2065.0,0.0011]
[1772088326700,0.47675883,2065.3,2065.0,0.0011]
[1772088328195,0.47675883,2065.3,2065.0,0.45403241]
[1772088328716,1.21046136,2065.4,2065.0,0.45403241]
[1772088329002,1.68712029,2065.5,2065.0,0.45403241]
[1772088330388,1.68712029,2065.5,2065.1,0.45293241]
[1772088333471,1.68712029,2065.5,2065.2,0.0011]
[1772088333673,1.68712029,2065.5,2065.2,0.45403241]
[1772088334880,2.89323582,2065.4,2065.2,0.45403241]
[1772088335085,0.001,2065.6,2065.3,0.03872409]
[1772088335601,1.69194565,2065.6,2065.2,0.0011]
[1772088335902,1.69194565,2065.6,2065.2,0.03982408]
[1772088335903,0.77644436,2065.5,2065.2,0.03982408]
[1772088336074,0.48063802,2065.4,2065.2,0.0011]
[1772088340215,0.001,2065.6,2065.2,0.03982408]
[1772088340590,0.001,2065.6,2065.3,0.03872408]
[1772088341710,0.001,2065.6,2065.4,0.03872407]
[1772088343399,0.48213802,2066.1,2065.6,0.03772407]
[1772088343703,1.21101099,2066.1,2065.6,0.03772407]
[1772088343895,0.48113802,2066.0,2065.6,0.03772407]
[1772088346220,0.001,2065.8,2065.6,0.03772407]
[1772088347508,0.48113802,2065.7,2065.5,1.233]
[1772088348399,0.48113802,2065.6,2065.3,0.0011]
[1772088352406,0.48113802,2065.6,2065.3,0.03882406]
[1772088353910,0.48113802,2065.5,2065.3,0.0011]
[1772088356036,0.48113802,2065.6,2065.3,0.0011]
[1772088356222,0.48113802,2065.6,2065.3,0.03882405]
[1772088358305,0.48113802,2065.6,2065.3,1.24929071]
[1772088358508,0.48113802,2065.7,2065.4,0.03772405]
[1772088359023,0.001,2065.8,2065.5,0.03882405]
[1772088359414,0.48213802,2065.8,2065.5,0.03882405]
[1772088360631,0.001,2065.8,2065.7,0.03772405]
[1772088361402,0.48113802,2065.7,2065.5,0.0011]
[1772088361608,0.48113802,2065.5,2065.3,0.0011]
[1772088362539,0.48113802,2065.4,2065.3,0.0011]
[1772088365634,1.6915573,2065.4,2065.3,0.0011]
[1772088365807,1.6915573,2065.4,2065.0,0.03882405]
[1772088365808,0.48058802,2065.3,2065.0,0.0011]
[1772088366130,0.48058802,2065.1,2065.0,0.0011]
[1772088367009,0.48058802,2065.1,2064.8,0.0011]
[1772088367010,0.48058802,2065.0,2064.8,0.0011]
[1772088367234,0.48058802,2064.9,2064.8,0.0011]
[1772088369241,1.6913004,2064.9,2064.8,0.0011]
[1772088371125,0.48058802,2064.9,2064.8,0.0011]
[1772088371928,0.48058802,2065.0,2064.8,0.0011]
[1772088372326,0.48058802,2064.9,2064.7,0.0011]
[1772088373445,0.48058802,2064.8,2064.7,0.0011]
[1772088374441,0.48058802,2064.7,2064.6,0.0011]
[1772088375220,0.48003802,2064.6,2064.2,0.0011]
[1772088375430,0.48003802,2064.6,2063.6,0.03992403]
[1772088375431,0.48003802,2064.1,2063.6,0.03992403]
[1772088375632,0.77584436,2064.0,2063.4,0.03992403]
[1772088375836,0.48003802,2063.9,2063.3,1.232]
[1772088376020,0.48003802,2063.9,2063.3,1.27192403]
[1772088376231,0.48003802,2063.9,2063.3,2.48357289]
[1772088376413,0.48003802,2063.9,2063.4,0.03992403]
[1772088377423,0.48003802,2064.1,2063.4,0.03992403]
[1772088377627,0.48003802,2064.1,2063.6,0.03992403]
[1772088378330,1.69123019,2064.1,2063.6,0.03992403]
[1772088378718,0.48003802,2064.1,2063.6,0.03992403]
[1772088379624,0.48003802,2064.1,2063.6,1.25137567]
[1772088380650,0.48003802,2064.1,2063.7,0.03992403]
[1772088380846,0.48003802,2064.3,2063.7,0.03992403]
[1772088381748,0.48003802,2064.4,2063.8,1.21135768]
[1772088382051,0.48003802,2064.3,2063.7,0.03992403]
[1772088382546,0.48003802,2064.3,2063.8,0.0011]
[1772088383228,0.48003802,2064.3,2063.8,0.04102402]
[1772088384044,0.48003802,2064.2,2063.8,0.0011]
[1772088385824,1.48124541,2064.1,2063.5,0.0011]
[1772088386150,0.47948802,2063.6,2063.3,0.0011]
[1772088386882,0.47948802,2063.4,2062.6,1.232]
[1772088387024,0.47948802,2063.4,2062.5,0.003]
[1772088387025,0.47948802,2062.8,2062.5,0.003]
[1772088387651,0.47948802,2063.1,2062.5,0.003]
[1772088387849,0.47948802,2063.1,2062.5,1.21511833]
[1772088388156,0.47948802,2063.0,2062.5,0.003]
[1772088388531,1.69124258,2063.2,2062.5,0.04402402]
[1772088388727,0.47948802,2063.2,2062.5,0.04402402]
[1772088389242,0.47598472,2063.4,2062.5,0.49018474]
[1772088389455,0.47598472,2063.3,2062.5,0.49018474]
[1772088390169,0.47598472,2063.2,2062.6,1.69924718]
[1772088391344,0.47598472,2063.6,2062.8,0.48718474]
[1772088392030,0.47598472,2063.6,2063.0,0.48718474]
[1772088393454,1.68747706,2063.6,2063.0,0.48718474]
[1772088393630,0.47598472,2063.5,2062.8,0.48718474]
[1772088394057,0.47598472,2063.5,2062.7,1.231]
[1772088394254,0.4569769,2063.3,2062.7,2.44299963]
[1772088394553,0.4569769,2063.3,2063.2,0.0011]
[1772088394945,0.4569769,2063.3,2062.7,2.44300006]
[1772088395130,0.4569769,2063.3,2063.0,0.0011]
[1772088395832,1.66839328,2063.7,2063.0,0.45493005]
[1772088396165,0.4569769,2063.6,2063.0,0.45493005]
[1772088396764,1.6685107,2063.5,2063.0,0.45493005]
[1772088397329,0.4569769,2063.5,2063.0,0.45493005]
[1772088397731,0.4569769,2063.7,2063.0,1.66675475]
[1772088397932,0.001,2063.9,2063.1,0.45383005]
[1772088398142,0.001,2063.9,2063.3,0.45383005]
[1772088398947,0.001,2063.9,2063.4,1.21159251]
[1772088399262,0.001,2063.9,2063.3,1.66544594]
[1772088400868,0.001,2063.9,2063.3,0.45383005]
[1772088401044,0.4579769,2063.9,2063.2,1.232]
[1772088401548,0.4579769,2063.9,2063.2,2.44370524]
[1772088401750,0.4579769,2063.9,2063.2,2.89753529]
[1772088402353,0.4579769,2063.9,2063.3,0.45383005]
[1772088403458,0.4579769,2063.9,2063.4,1.21159251]
[1772088403654,1.21121797,2064.1,2063.4,1.21159251]
[1772088403655,0.4569769,2064.1,2063.5,0.45383005]
[1772088405460,0.4569769,2064.3,2063.6,1.66530514]
[1772088405764,0.4569769,2064.3,2063.8,0.45383005]
[1772088406749,0.4569769,2064.5,2063.8,0.45383005]
[1772088406950,0.4569769,2064.6,2063.8,0.45383005]
[1772088407349,0.001,2063.9,2063.8,0.45383005]
[1772088407863,0.001,2063.9,2063.8,1.66518773]
[1772088408470,0.4569769,2064.3,2063.8,1.66518773]
[1772088408637,0.4569769,2064.5,2063.8,1.66518773]
[1772088408836,0.4569769,2064.5,2063.8,1.21135768]
[1772088409056,0.4569769,2064.5,2063.9,0.45383005]
[1772088409336,0.4569769,2064.8,2063.9,0.45383005]
[1772088409869,0.4569769,2064.7,2063.7,1.233]
[1772088410040,0.4569769,2064.7,2063.8,5.29916368]
[1772088410243,0.4569769,2064.7,2063.9,0.45383005]
[1772088411064,1.66772481,2064.9,2063.9,0.45383005]
[1772088411269,0.4569769,2064.8,2063.9,0.45383005]
[1772088412775,0.4569769,2064.8,2064.1,0.45383005]
[1772088413481,2.0764882,2065.3,2064.1,0.45383005]
[1772088413652,0.4569769,2065.2,2064.3,0.45383005]
[1772088414876,1.66757202,2065.1,2064.4,1.66483566]
[1772088416276,0.47605106,2065.0,2064.4,1.66483566]
[1772088418466,0.47605106,2064.8,2064.2,2.90708776]
[1772088419191,0.47605106,2064.8,2064.0,1.67418796]
[1772088419468,0.47605106,2064.8,2064.0,1.67422397]
[1772088419680,0.47605106,2064.8,2064.1,0.4629913]
[1772088420255,0.47605106,2064.8,2064.0,0.0011]
[1772088421276,0.47605106,2064.6,2064.0,0.0011]
[1772088421499,0.47605106,2064.6,2064.0,0.4640913]
[1772088421641,0.001,2064.9,2064.1,0.4629913]
[1772088421847,0.47605106,2064.8,2064.3,0.4629913]
[1772088422046,0.47605106,2064.8,2064.2,1.7019913]
[1772088422247,0.47705106,2064.9,2064.3,0.4629913]
[1772088422540,0.47605106,2064.8,2064.2,1.239]
[1772088422982,0.47605106,2064.8,2064.2,1.7019913]
[1772088423169,0.001,2064.9,2064.4,1.21100561]
[1772088424473,0.47705106,2064.9,2064.4,0.4629913]
[1772088424876,0.47705106,2064.9,2064.3,4.84421879]
[1772088425097,0.47705106,2064.9,2064.3,5.30721009]
[1772088425628,0.47705106,2064.9,2064.4,0.4629913]
[1772088425752,0.001,2064.9,2064.4,0.4629913]
[1772088425950,0.001,2064.9,2064.4,0.4529913]
[1772088426563,0.001,2064.9,2064.5,1.21094696]
[1772088426889,0.001,2064.9,2064.5,1.67393826]
[1772088428500,0.001,2064.9,2064.4,0.4629913]
[1772088428659,0.001,2064.9,2064.4,1.67393927]
[1772088428864,0.001,2064.9,2064.5,0.4629913]
[1772088429669,0.001,2065.3,2064.7,0.4629913]
[1772088430400,0.001,2065.8,2065.0,0.4629913]
[1772088430703,0.001,2065.8,2065.3,1.21047789]
[1772088430704,0.47705106,2065.8,2065.3,1.21047789]
[1772088430908,0.001,2065.8,2065.4,0.4629913]
[1772088431480,0.001,2066.1,2065.5,0.4629913]
[1772088431790,0.47605106,2066.0,2065.3,1.245]
[1772088432303,0.001,2065.6,2065.3,1.245]
[1772088435004,0.47705106,2065.6,2065.3,1.245]
[1772088436271,0.47705106,2065.6,2065.3,2.45546345]
[1772088437101,0.47705106,2065.6,2065.3,1.245]
[1772088438175,0.47705106,2065.6,2064.9,1.246]
[1772088438176,0.47605106,2065.5,2064.9,1.246]
[1772088438505,0.47605106,2065.5,2064.9,2.91968731]
[1772088438805,0.47605106,2065.5,2065.0,0.4629913]
[1772088439184,0.47605106,2065.5,2065.0,1.67358937]
[1772088440007,0.001,2065.6,2065.1,0.4629913]
[1772088441701,0.001,2065.6,2065.3,0.4629913]
[1772088442010,0.001,2065.6,2065.3,1.7089913]
[1772088442374,0.47605106,2065.5,2064.5,1.246]
[1772088442683,0.47605106,2065.4,2064.5,1.246]
[1772088442890,0.47605106,2065.1,2064.2,1.246]
[1772088443811,0.47605106,2064.9,2064.2,1.246]
[1772088444783,0.47605106,2064.9,2064.6,0.0011]
[1772088445933,0.47605106,2064.7,2064.6,0.0011]
[1772088446228,0.47605106,2064.7,2064.1,0.0011]
[1772088446928,0.47605106,2064.7,2064.0,0.0011]
[1772088447804,0.45379617,2064.4,2064.0,0.0011]
[1772088449925,0.45379617,2064.2,2064.0,0.0011]
[1772088450206,0.45379617,2064.2,2063.9,0.0011]
[1772088451832,1.21118162,2064.1,2063.9,0.0011]
[1772088452012,0.45379617,2064.0,2063.6,0.0011]
[1772088453340,1.66496245,2064.2,2063.6,0.49650569]
[1772088453547,0.45379617,2064.1,2063.6,0.49650569]
[1772088453714,0.45379617,2064.1,2063.6,0.0011]
[1772088453914,0.47453285,2063.9,2063.6,0.0011]
[1772088455930,1.68542115,2064.6,2063.6,0.45666427]
[1772088456241,0.47453285,2064.5,2063.6,0.45666427]
[1772088456442,0.47453285,2064.5,2063.8,0.0011]
[1772088458029,1.68553846,2064.4,2063.8,1.21245768]
[1772088458736,0.47453285,2064.4,2063.9,0.45556427]
[1772088459247,2.03053285,2064.6,2063.9,0.45556427]
[1772088459546,0.47453285,2064.5,2063.8,0.0011]
[1772088460230,0.47453285,2064.3,2063.8,0.0011]
[1772088460769,0.47453285,2064.3,2063.8,0.45666427]
[1772088463463,1.21097565,2064.5,2063.8,0.45666427]
[1772088463464,0.47453285,2064.5,2063.9,1.66686326]
[1772088464362,0.47453285,2064.5,2064.0,0.45556427]
[1772088464668,1.68548035,2064.5,2064.0,0.45556427]
[1772088465472,0.47453285,2064.3,2063.8,0.45666427]
[1772088465676,0.47453285,2064.3,2063.9,0.45556427]
[1772088465974,0.47453285,2064.4,2063.9,0.45556427]
[1772088466965,1.556,2064.6,2063.9,0.45556427]
[1772088467454,1.556,2064.6,2064.1,0.45556427]
[1772088467654,1.68536441,2064.7,2064.1,0.45556427]
[1772088468277,0.001,2064.3,2064.1,0.45556427]
[1772088469149,1.68518938,2065.0,2064.1,0.45556427]
[1772088469564,0.47453285,2065.0,2064.3,0.45556427]
[1772088470287,1.48145453,2065.5,2064.3,0.45556427]
[1772088470475,0.47453285,2065.2,2064.5,0.45556427]
[1772088471154,0.47453285,2065.2,2064.6,0.45556427]
[1772088471352,0.47453285,2065.4,2064.6,0.45556427]
[1772088471859,0.47453285,2065.3,2064.6,0.45556427]
[1772088472386,0.47453285,2065.3,2064.5,1.244]
[1772088472569,0.47453285,2065.3,2064.5,2.91050091]
[1772088472796,0.47453285,2065.3,2064.0,1.48145453]
[1772088472797,0.47453285,2064.3,2063.5,0.0011]
[1772088473090,0.0044,2062.8,2062.3,1.66780303]
[1772088473258,0.47453285,2063.1,2062.3,1.66780303]
[1772088473781,1.68630237,2063.1,2062.3,1.66780303]
[1772088473980,2.89000653,2063.0,2062.3,1.66780303]
[1772088474351,1.68630194,2063.1,2062.3,1.66780303]
[1772088475278,0.47453285,2063.1,2062.3,1.66780303]
[1772088475666,1.6863031,2063.1,2062.3,1.66780303]
[1772088475903,0.47453285,2063.0,2062.3,1.66780303]
[1772088477814,1.68674234,2063.3,2062.6,0.48699259]
[1772088478005,2.8843724,2063.2,2062.6,0.48699259]
[1772088478310,1.68674234,2063.3,2062.6,0.48699259]
[1772088479710,1.68674418,2063.3,2062.6,0.48699259]
[1772088479890,1.68674418,2063.3,2062.6,1.6989969]
[1772088480090,0.47508979,2063.2,2062.6,1.6989969]
[1772088480289,0.47508979,2063.2,2062.5,0.0011]
[1772088481810,0.47508979,2063.2,2062.5,1.21321972]
[1772088483215,0.47508979,2063.0,2062.5,0.0011]
[1772088485622,1.68694621,2063.0,2062.5,0.0011]
[1772088485916,0.47508979,2062.9,2062.5,0.0011]
[1772088487819,0.47508979,2062.8,2062.3,0.0011]
[1772088488019,0.47508979,2062.7,2062.3,0.0011]
[1772088489703,1.68715223,2062.6,2062.3,0.0011]
[1772088489902,1.21206244,2062.6,2062.3,0.0011]
[1772088490221,0.47508979,2062.5,2062.3,0.0011]
[1772088491023,0.47508979,2062.7,2062.3,0.0011]
[1772088491227,0.47508979,2063.2,2062.3,0.48809259]
[1772088491425,0.47508979,2063.1,2062.3,0.48809259]
[1772088491823,1.68689659,2063.1,2062.4,1.21217998]
[1772088492136,1.68689659,2063.1,2062.4,1.69917257]
[1772088492634,1.68689659,2063.1,2062.5,0.0011]
[1772088492806,0.001,2062.8,2062.5,0.0011]
[1772088493002,0.001,2062.8,2062.5,0.48809259]
[1772088493213,0.47508979,2063.3,2062.5,0.48809259]
[1772088493430,0.47508979,2063.5,2062.5,0.48809259]
[1772088493837,0.47508979,2063.9,2063.0,0.48699259]
[1772088494034,0.47508979,2063.7,2063.0,0.48699259]
[1772088497166,0.47508979,2064.3,2063.2,0.48699259]
[1772088498657,0.47508979,2064.3,2063.1,2.45676869]
[1772088498658,0.47508979,2064.3,2063.4,0.48699259]
[1772088499031,1.68615535,2064.3,2063.6,0.48699259]
[1772088499585,0.47508979,2064.4,2063.7,0.48699259]
[1772088500633,0.001,2064.5,2063.7,0.48699259]
[1772088501674,0.001,2064.5,2063.9,0.48699259]
[1772088503861,0.001,2064.5,2064.0,1.21124031]
[1772088504066,0.001,2064.5,2064.0,1.6982329]
[1772088505365,0.001,2064.3,2064.0,1.6982329]
[1772088506838,0.001,2064.5,2064.1,0.46626371]
[1772088507233,0.47254391,2064.9,2064.1,0.46626371]
[1772088507541,0.47254391,2065.1,2064.4,0.46626371]
[1772088508967,1.68385468,2065.6,2064.7,0.46626371]
[1772088509450,0.47354391,2065.6,2064.7,0.46626371]
[1772088509838,1.68385776,2065.6,2064.7,0.46626371]
[1772088510038,0.47254391,2065.5,2064.7,0.46626371]
[1772088511941,0.47254391,2065.5,2064.9,0.46626371]
[1772088512137,0.001,2065.6,2065.1,0.46626371]
[1772088512775,0.001,2065.6,2065.0,1.248]
[1772088512776,0.001,2065.6,2065.3,0.46626371]
[1772088513080,0.001,2066.1,2065.4,0.46626371]
[1772088514037,0.001,2066.1,2065.5,3.15178929]
[1772088514238,0.47937088,2066.1,2065.5,1.248]
[1772088515775,0.47937088,2066.1,2065.5,1.70797408]
[1772088516075,0.001,2066.1,2065.7,1.67021758]
[1772088518472,0.47937088,2066.3,2065.7,1.67021758]
[1772088518473,0.001,2066.3,2065.8,0.45997408]
[1772088519210,0.47837088,2066.7,2066.0,2.5287225]
[1772088519489,0.47837088,2066.7,2066.1,0.45997408]
[1772088520154,0.47837088,2066.7,2066.1,1.66993196]
[1772088520560,0.47837088,2066.6,2066.0,1.25]
[1772088521375,0.47837088,2066.6,2065.6,2.46036243]
[1772088521879,0.47837088,2066.6,2065.6,2.92033651]
[1772088523563,0.47837088,2066.4,2065.6,2.92033651]
[1772088525656,1.20986983,2066.4,2065.6,2.92033651]
[1772088525856,0.47837088,2066.3,2065.6,2.92033651]
[1772088527883,0.47837088,2066.2,2065.6,2.92033651]
[1772088528401,0.47837088,2066.2,2065.6,1.2501]
[1772088529689,0.47837088,2066.2,2065.7,0.45997408]
[1772088529895,0.47837088,2066.2,2065.8,1.21018491]
[1772088530890,0.001,2066.0,2065.8,1.21018491]
[1772088532286,0.001,2066.0,2065.7,5.30093249]
[1772088532287,0.001,2066.0,2065.7,1.67017504]
[1772088535288,0.001,2066.0,2065.7,0.45997408]
[1772088535596,0.001,2066.0,2065.7,1.67021698]
[1772088536300,0.001,2066.0,2065.8,0.48795256]
[1772088536598,1.68846868,2066.4,2065.8,0.48795256]
[1772088536972,0.47862643,2066.3,2065.8,0.48795256]
[1772088537387,0.47862643,2066.1,2065.6,2.94829615]
[1772088541308,0.47862643,2066.0,2065.6,0.0011]
[1772088541486,0.47862643,2066.0,2065.4,0.0011]
[1772088542205,0.47862643,2065.8,2065.4,0.0011]
[1772088542886,0.47862643,2065.8,2065.1,0.0011]
[1772088542887,0.47862643,2065.7,2065.1,0.0011]
[1772088543296,0.47862643,2065.5,2064.5,0.944]
[1772088543619,4.84120836,2065.7,2064.9,0.48795256]
[1772088543620,0.47862643,2065.7,2064.9,0.48795256]
[1772088543907,0.47862643,2065.7,2065.0,0.48795256]
[1772088544698,0.47862643,2065.7,2065.1,0.0011]
[1772088545803,0.47862643,2065.6,2064.9,1.252]
[1772088546006,0.47862643,2065.6,2065.0,0.0011]
[1772088547089,0.47862643,2065.8,2065.1,0.48905256]
[1772088547291,0.47862643,2065.7,2065.1,0.48795256]
[1772088547907,1.68888064,2065.7,2065.2,0.0011]
[1772088548095,0.47862643,2065.6,2065.2,0.0011]
[1772088549993,0.47862643,2065.6,2065.0,5.33053454]
[1772088550190,0.47862643,2065.6,2065.1,0.0011]
[1772088550720,0.47862643,2065.6,2065.0,5.33053454]
[1772088551010,0.47862643,2065.6,2065.1,0.0011]
[1772088552313,1.68893152,2065.6,2065.1,0.0011]
[1772088554888,0.001,2065.4,2065.1,0.0011]
[1772088555087,0.47962643,2065.4,2065.2,0.0011]
[1772088555390,0.47962643,2065.4,2065.0,0.0011]
[1772088556814,0.47862643,2065.2,2064.8,0.0011]
[1772088558690,0.47862643,2065.0,2064.8,0.0011]
[1772088559113,0.47862643,2065.0,2064.5,0.0011]
[1772088560921,0.47862643,2064.8,2064.5,0.0011]
[1772088563905,0.47862643,2065.0,2064.5,0.48905256]
[1772088564295,0.47862643,2065.0,2064.5,0.0011]
[1772088564789,0.47862643,2065.0,2064.5,0.48905256]
[1772088565230,0.47862643,2065.0,2064.5,0.0011]
[1772088566421,0.48401479,2064.8,2064.5,0.0011]
[1772088566998,0.48401479,2064.8,2064.7,0.0011]
[1772088568694,4.8436612,2065.0,2064.7,0.0011]
[1772088568695,0.001,2065.0,2064.7,0.46966177]
[1772088570422,0.001,2065.0,2064.7,0.0011]
[1772088570624,0.48501479,2065.0,2064.7,0.0011]
[1772088571319,0.001,2065.0,2064.7,0.46966177]
[1772088572653,1.69567592,2065.0,2064.7,0.0011]
[1772088572816,0.48501479,2065.0,2064.7,0.0011]
[1772088577452,7.885,2065.4,2064.8,0.46223202]
[1772088577453,0.48782176,2065.4,2064.8,0.46223202]
[1772088577640,0.48682176,2065.2,2064.7,0.0011]
[1772088577846,0.48682176,2065.2,2064.7,0.46333202]
[1772088578955,0.48682176,2065.2,2064.9,0.0011]
[1772088579453,0.48782176,2065.4,2064.9,0.46333202]
[1772088579652,0.48782176,2065.4,2064.9,1.67402474]
[1772088579970,0.48782176,2065.4,2065.0,0.46223202]
[1772088580269,0.001,2065.4,2065.0,0.46223202]
[1772088580560,0.001,2065.4,2064.9,1.67402474]
[1772088581062,0.001,2065.4,2065.0,0.46223202]
[1772088581734,0.001,2065.4,2065.2,0.46223202]
[1772088586761,0.001,2065.4,2065.0,2.91484321]
[1772088588062,0.001,2065.4,2065.0,2.91488318]
[1772088588261,0.001,2065.4,2065.0,2.91488448]
[1772088588966,0.001,2065.4,2065.1,0.46223202]
[1772088591536,0.001,2065.4,2065.2,0.0011]
[1772088592968,0.48782176,2065.4,2065.2,0.0011]
[1772088594241,0.48682176,2065.3,2065.2,0.0011]
[1772088598368,0.38593,2065.3,2065.2,0.0011]
[1772088598573,0.001,2065.4,2065.2,0.45260287]
[1772088600982,0.4771252,2065.7,2065.3,0.45150287]
[1772088601171,0.4771252,2065.6,2065.2,0.0011]
[1772088602177,0.4771252,2065.4,2065.0,0.0011]
[1772088603277,0.4771252,2065.3,2065.0,0.0011]
[1772088603765,0.4771252,2065.3,2065.2,0.0011]
[1772088605878,0.29574361,2065.7,2065.2,0.45260287]
[1772088605879,2.0001252,2065.7,2065.2,0.45260287]
[1772088607383,0.4771252,2065.7,2065.2,0.45260287]
[1772088607551,0.4771252,2065.7,2065.3,0.74724648]
[1772088608154,0.4771252,2065.7,2065.3,0.45150287]
[1772088608782,0.4771252,2065.7,2065.3,1.95771973]
[1772088609487,0.4771252,2066.0,2065.6,0.45150287]